[Event "15th Chennai GM Open 2025"]
[Site "Chennai"]
[Date "2025.01.03"]
[Round "2.11"]
[White "Sathvik Adiga"]
[Black "Banik Hrishikesh Kumar"]
[Result "1-0"]
[ECO "C54"]
[WhiteElo "2395"]
[BlackElo "2123"]
[Annotator "TA"]
[PlyCount "115"]
[EventDate "2025.01.02"]
[EventType "swiss"]
[EventCountry "IND"]
[SourceTitle "playchess.com"]
[Source "ChessBase"]
[SourceQuality "1"]
[TimeControl "5400+30"]

{[%evp 29,115,31,37,5,28,34,40,0,0,4,12,0,0,0,0,0,0,0,0,0,9,12,31,14,12,13,5,13,13,12,10,10,13,7,8,0,0,-15,311,265,300,294,323,321,29989,318,275,273,255,83,83,91,91,108,108,91,91,91,253,248,235,0,8,0,0,0,0,0,0,0,0,0,172,172,171,165,128,105,297,121,29978,29979,29987,29988,29989,29988,29988,29985]} 1. e4 {[%emt 0:00:01]} e5 {[%emt 0:00:15]} 2. Nf3 {[%emt 0:00:06]} Nc6 {[%emt 0:00:09]} 3. Bc4 {[%emt 0:00:03]} Bc5 {[%emt 0:00:24]} 4. c3 {[%emt 0:00:05]} Nf6 {[%emt 0:00:14]} 5. d3 {[%emt 0:00:04]} O-O {[%emt 0:00:21]} 6. O-O {[%emt 0:00:12]} d6 {[%emt 0:00:49]} 7. Re1 {[%emt 0:00:05]} h6 {[%emt 0:01:39]} 8. h3 {[%emt 0:00:09]} a5 {[%emt 0:01:39]} 9. Bb5 {[%emt 0:00:29]} Ba7 {[%emt 0:03:56]} 10. Nbd2 {[%emt 0:01:20]} Ne7 {[%emt 0:04:01]} 11. d4 {[%emt 0:01:22]} Ng6 {[%emt 0:00:32]} 12. Bd3 {[%emt 0:01:30]} c6 {[%emt 0:01:21]} 13. Nf1 {[%emt 0:04:07]} d5 {[%emt 0:03:55]} 14. Nxe5 {[%emt 0:03:13]} Nxe5 {[%emt 0:00:43]} 15. dxe5 {[%emt 0:00:06]} Nxe4 {[%emt 0:00:09]} 16. Be3 {[%emt 0:01:07]} (16. Bxe4 dxe4 17. Qe2 Qd3 18. Qxe4 Qxe4 19. Rxe4 Rd8 20. Be3) 16... Bxe3 {[%emt 0:12:18]} 17. Rxe3 {[%emt 0:03:14]} Qg5 {[%emt 0:14:54]} 18. Nd2 {[%emt 0:23:02]} Qxe5 {[%emt 0:16:28]} 19. Nxe4 {[%emt 0:03:21]} dxe4 {[%emt 0:00:13]} 20. Bxe4 {[%emt 0:18:22]} Qf6 {[%emt 0:05:36]} 21. Qb3 {[%emt 0:02:08]} Be6 {[%emt 0:11:51]} 22. Qxb7 {[%emt 0:04:56]} Rab8 {[%emt 0:00:12]} 23. Qxc6 {[%emt 0:04:06]} Rxb2 {[%emt 0:00:12]} 24. Rf3 {[%emt 0:00:41]} Qg5 {[%emt 0:00:54]} 25. a4 {[%emt 0:09:28]} Qe5 {[%emt 0:08:00]} 26. Rd1 {[%emt 0:04:12]} Re2 {[%emt 0:04:14]} 27. Bd3 {[%emt 0:08:07]} Re1+ {[%emt 0:05:44]} (27... Bd5 $2 28. Qxd5 (28. Bh7+ $2 Kxh7 29. Qxd5 Re1+ 30. Rxe1 Qxd5 $19) 28... Qxd5 29. Bh7+ (29. Bxe2 Qb3 $15) 29... Kxh7 30. Rxd5 $16) 28. Rxe1 {[%emt 0:00:01]} Qxe1+ {[%emt 0:00:08]} 29. Kh2 {[%emt 0:01:20]} Qe5+ $1 {[%emt 0:00:41]} 30. Rg3 {[%emt 0:00:07]} Rd8 {[%emt 0:01:45]} 31. Qb5 {[%emt 0:06:37]} (31. Qe4 {simplifies} Qxe4 32. Bxe4 Kf8 33. Bd3) 31... Qf4 {[%emt 0:00:12]} 32. Kg1 {[%emt 0:00:59]} (32. Qxa5 $2 Rxd3 33. Qb4 Bc4 $19 (33... Qxf2 $2 34. Rxd3 Kh7 35. Qd4 $18)) 32... Qc1+ {[%emt 0:00:43]} 33. Bf1 {[%emt 0:00:45]} Rc8 $2 {[%emt 0:01:13][%mdl 8192]} (33... Rd1 $11) 34. Qe5 $18 {[%emt 0:00:08]} (34. Qxa5 $2 Bc4 35. Kh2 Qxf1 $19 (35... Bxf1 36. Qe5 $11)) 34... g5 {[%emt 0:00:22] [#]} 35. f4 $1 {[%emt 0:01:46]} (35. Qxa5 $2 Bc4 36. Qb6 Qxf1+ 37. Kh2 Kh7 $19) 35... Bc4 {[%emt 0:00:23]} 36. fxg5 {[%emt 0:00:06]} (36. Rf3 g4 (36... Bxf1 37. Rxf1 Qxc3 38. Qxc3 $11) 37. hxg4 Bxf1 38. Rxf1 Qxc3 $14) 36... Qxf1+ {[%emt 0:00:09]} 37. Kh2 {[%emt 0:00:03]} h5 {[%emt 0:01:26]} 38. g6 $1 {[%emt 0:00:04]} f6 {[%emt 0:00:43]} 39. Qe7 $2 {[%emt 0:01:33]} (39. Qxh5 $18 {White threatens Qh7+ and mate.} Rc7 40. Qh6 (40. Qxa5 Qf4 $11)) 39... Qf4 $16 {[%emt 0:00:38]} 40. Qh7+ {[%emt 0:00:40]} Kf8 {[%emt 0:00:08]} 41. g7+ {[%emt 0:00:32]} Ke8 {[%emt 0:00:05]} 42. g8=Q+ {[%emt 0:00:26]} (42. g8=B $2 h4 43. Qg6+ Kd8 44. Bxc4 hxg3+ (44... Qxg3+ $2 45. Qxg3 hxg3+ 46. Kxg3 $19) 45. Qxg3 Rxc4 $19 (45... Qxc4 $2 46. Qd6+ Ke8 47. Qxf6 $19) (45... Qxg3+ $2 46. Kxg3 Rxc4 47. Kf3 $19)) (42. g8=N Bf7 $16) (42. g8=R+ Bxg8 43. Qxg8+ Ke7 44. Qxc8 h4 45. Qc5+ Kf7) 42... Bxg8 {[%emt 0:00:05]} 43. Qxg8+ {[%emt 0:00:04]} Kd7 $2 {[%emt 0:00:04] [#]} (43... Ke7 $16 44. Qxc8 h4 45. Qb7+ (45. Qc5+ Kf7 $16) 45... Ke8 46. Qc6+ Kf7 47. Qd5+ Kf8 48. Qd8+ Kf7 49. Qd5+) 44. Qd5+ $1 $18 {[%emt 0:00:47]} Ke7 {[%emt 0:00:24]} 45. Qxh5 $2 {[%emt 0:00:47]} ({White has to play} 45. Qxa5 $18 {And now Qb4+ would win.} Rc4 46. Qxh5 Rxc3 47. Qg4) 45... Rxc3 $11 {[%emt 0:00:09]} 46. Qh7+ {[%emt 0:00:10]} Kd6 {[%emt 0:00:49]} 47. Qg8 {[%emt 0:00:06]} Ke7 {[%emt 0:02:20]} 48. Qg7+ {[%emt 0:00:34]} Ke8 {[%emt 0:00:09]} 49. Qg4 {[%emt 0:01:03]} Qe5 {[%emt 0:00:05]} 50. h4 {[%emt 0:00:17]} f5 $2 {[%emt 0:01:11]} (50... Rxg3 $11 {and Black has nothing to worry.} 51. Qxg3 Qe4) 51. Qg6+ $18 {[%emt 0:00:24]} Ke7 {[%emt 0:00:15]} 52. Qg5+ {[%emt 0:00:45]} Ke6 {[%emt 0:01:05]} 53. h5 {[%emt 0:00:10]} Rd3 $2 {[%emt 0:00:32]} (53... Rxg3 $16 54. Qxg3 Qd4) 54. Kh3 {[%emt 0:00:58]} (54. Qg6+ $18 {and White stays clearly on top.} Ke7 55. h6 Rxg3 56. Qxg3) 54... Rd4 $2 {[%emt 0:00:31][%mdl 8192]} (54... Rxg3+ $16 55. Qxg3 Qc5 56. Qg6+ Ke7 57. Qg5+ Kf7) 55. Qg8+ {[%emt 0:00:18]} Kd6 {[%emt 0:00:25]} 56. Qb8+ {[%emt 0:00:23]} Kd5 {[%emt 0:00:08]} 57. Qb5+ {[%emt 0:00:05]} Ke4 {[%emt 0:00:38]} 58. Re3+ {[%emt 0:00:09]} 1-0

[Event "15th Chennai GM Open 2025"]
[Site "Chennai"]
[Date "2025.01.03"]
[Round "2.12"]
[White "Sammed Jaykumar, Shete"]
[Black "Jihan Tejas Shah"]
[Result "1-0"]
[ECO "B31"]
[WhiteElo "2379"]
[BlackElo "2109"]
[Annotator "TA"]
[PlyCount "157"]
[EventDate "2025.01.02"]
[EventType "swiss"]
[EventCountry "IND"]
[SourceTitle "playchess.com"]
[Source "ChessBase"]
[SourceQuality "1"]
[TimeControl "5400+30"]

{[%evp 59,157,0,0,-20,29,26,31,18,26,26,37,39,39,44,36,8,69,68,63,59,133,133,134,113,123,125,167,152,160,164,195,191,233,209,431,404,359,333,1600,635,1212,1158,1641,1251,2434,2070,4622,4618,5398,2340,583,0,1726,1715,29976,29978,29978,29977,29988,29976,29976,29977,29977,29976,29973,1581,29960,29948,29948,29955,29944,5918,29953,1341,29961,29963,5406,1075,949,0,3008,2913,2412,2319,1409,1322,29978,29979,29979,29980,29983,29982,29985,29985,29986,29987,29987,29988,29989,29990]} 1. e4 {[%emt 0:00:03]} c5 {[%emt 0:00:08]} 2. Nf3 {[%emt 0:00:14]} Nc6 {[%emt 0:00:03]} 3. Bb5 {[%emt 0:00:27]} g6 {[%emt 0:00:05]} 4. Bxc6 {[%emt 0:00:26]} dxc6 {[%emt 0:00:05]} 5. d3 {[%emt 0:00:23]} Bg7 {[%emt 0:00:05]} 6. h3 {[%emt 0:00:17]} Nf6 {[%emt 0:00:05]} 7. Nc3 {[%emt 0:00:14]} O-O {[%emt 0:00:48]} 8. Be3 {[%emt 0:00:18]} b6 {[%emt 0:00:03]} 9. Bf4 {[%emt 0:00:24]} Nh5 {[%emt 0:07:19]} 10. Bh2 {[%emt 0:02:48]} e5 {[%emt 0:05:44]} 11. Qd2 {[%emt 0:04:13]} Qd6 {[%emt 0:04:33]} 12. Ne2 {[%emt 0:01:52]} f5 {[%emt 0:05:56]} 13. exf5 {[%emt 0:09:33]} Rxf5 {[%emt 0:01:00]} 14. Ng3 {[%emt 0:03:02]} Nxg3 {[%emt 0:01:53]} 15. Bxg3 {[%emt 0:00:06]} Be6 {[%emt 0:01:17]} 16. c4 {[%emt 0:07:30]} b5 {[%emt 0:06:27]} 17. Qe2 {[%emt 0:03:06]} Rd8 {[%emt 0:06:31]} 18. O-O-O {[%emt 0:01:28]} Qf8 {[%emt 0:05:25]} 19. Rhe1 {[%emt 0:02:01]} Re8 {[%emt 0:04:16]} 20. Nd2 {[%emt 0:04:02]} Bh6 {[%emt 0:02:40]} 21. Kb1 {[%emt 0:00:49]} Bxd2 {[%emt 0:02:00]} 22. Rxd2 {[%emt 0:03:31]} Qf7 {[%emt 0:05:31]} 23. b3 {[%emt 0:06:14]} a5 {[%emt 0:00:56]} 24. Qe3 {[%emt 0:10:53]} a4 {[%emt 0:04:51]} 25. Rc1 {[%emt 0:13:04]} axb3 {[%emt 0:01:35]} 26. axb3 {[%emt 0:01:23]} Qb7 {[%emt 0:01:05]} 27. Kc2 {[%emt 0:01:48]} e4 {[%emt 0:06:41]} 28. dxe4 {[%emt 0:01:16]} bxc4 {[%emt 0:01:17]} 29. bxc4 {[%emt 0:01:09]} Bxc4 {[%emt 0:06:43] [#]} 30. f3 {[%emt 0:00:29]} (30. Qc3 $1 $16 Bb5) 30... Rd5 $11 {[%emt 0:04:14]} 31. Kd1 {[%emt 0:06:38]} (31. Qc3 $2 Bb3+ 32. Qxb3 Qxb3+ 33. Kxb3 Rxd2 $19) 31... Qb3+ {[%emt 0:02:38]} (31... Bf1 $142) 32. Qxb3 $11 {[%emt 0:00:02]} Bxb3+ {[%emt 0:00:06]} 33. Ke1 {[%emt 0:00:08]} Rxd2 {[%emt 0:00:10]} 34. Kxd2 {[%emt 0:00:03]} Ra8 {[%emt 0:02:24]} 35. Rxc5 {[%emt 0:04:09]} Ra2+ {[%emt 0:00:07]} 36. Ke3 {[%emt 0:00:04]} Rxg2 {[%emt 0:00:11]} 37. Be5 {[%emt 0:00:11]} Ba4 {[%emt 0:01:14]} ({Black should try} 37... Rc2 $11 38. Bc3 Ba4) 38. Ra5 $1 $14 {[%emt 0:00:18]} Bb5 {[%emt 0:00:08]} 39. Ra7 {[%emt 0:00:24]} h5 {[%emt 0:01:33]} (39... g5 $14) 40. h4 $16 {[%emt 0:00:28]} Kf8 {[%emt 0:00:44]} 41. Bf6 {[%emt 0:02:55]} Bc4 {[%emt 0:01:48]} 42. Rc7 {[%emt 0:00:27]} Be6 {[%emt 0:01:54]} 43. Rxc6 {[%emt 0:00:44]} Kf7 {[%emt 0:00:22]} 44. Bg5 {[%emt 0:00:14]} Ra2 {[%emt 0:02:03]} 45. Rc7+ {[%emt 0:00:10]} Kf8 {[%emt 0:00:12]} 46. Kf4 {[%emt 0:02:37]} Bf7 $2 {[%emt 0:02:00]} (46... Bh3 47. Be7+ Ke8) 47. Be7+ $18 {[%emt 0:04:34]} Kg7 {[%emt 0:01:08]} 48. Bc5 {[%emt 0:00:19]} Ra8 $2 {[%emt 0:00:30]} (48... Rh2 49. Bd4+ Kf8) 49. Bd4+ {[%emt 0:00:23]} (49. e5 $142 Re8 50. Bd6) 49... Kg8 {[%emt 0:00:06]} 50. Kg5 {[%emt 0:00:29]} Re8 {[%emt 0:00:38]} 51. Bf6 {[%emt 0:00:08]} Ra8 {[%emt 0:00:39]} 52. Kh6 {[%emt 0:02:14]} Re8 {[%emt 0:01:02]} 53. e5 {[%emt 0:01:38]} Re6 {[%emt 0:01:51]} 54. Kg5 {[%emt 0:01:29]} (54. f4 $142 Re8 55. Rd7) 54... Kf8 {[%emt 0:00:33]} 55. Kh6 {[%emt 0:00:11]} (55. Ra7 $142 Kg8 56. f4) 55... Kg8 $1 $18 {[%emt 0:00:04]} 56. f4 {[%emt 0:01:13]} Re8 {[%emt 0:00:32]} 57. Be7 {[%emt 0:01:28]} Ra8 {[%emt 0:01:01]} 58. Bb4 {[%emt 0:00:33]} Rb8 {[%emt 0:00:33]} 59. Bc5 {[%emt 0:00:35]} Re8 {[%emt 0:00:15]} 60. Bd6 {[%emt 0:00:32]} Re6 {[%emt 0:00:50]} 61. Be7 {[%emt 0:00:25]} Be8 {[%emt 0:00:19]} 62. Kg5 {[%emt 0:00:09]} (62. Bc5 $142 Bf7 63. Be7 Be8 64. Ra7 Bf7 65. Ra8+ Be8 66. Rxe8+ Kf7 67. Rd8 Rxe7 68. Rd6) 62... Bf7 {[%emt 0:00:58]} 63. Rc8+ {[%emt 0:00:38]} Kh7 {[%emt 0:00:06]} 64. Bd6 {[%emt 0:01:47]} Kg7 {[%emt 0:00:22]} 65. Bf8+ {[%emt 0:00:20]} (65. Rc7 $142 Re8 66. Be7 Ra8 67. Bf6+ Kg8 68. Kh6 Re8 69. Be7 Ra8 70. Bd6) 65... Kh7 {[%emt 0:00:39]} 66. Rc7 {[%emt 0:00:18]} (66. Bb4 $142 Kg7 67. Bf8+ Kh7 68. Rc7 Kg8 69. Be7 Kg7 70. Bf6+ Kg8 71. Kh6) 66... Kg8 $18 {[%emt 0:00:06]} 67. Be7 {[%emt 0:00:05]} Be8 {[%emt 0:00:49]} 68. Bf6 {[%emt 0:00:28]} (68. Kh6 $142 Kh8 69. Bd6 g5+ 70. Kxg5 Rg6+ 71. Kf5) 68... Bf7 $18 {[%emt 0:00:05]} 69. Kh6 {[%emt 0:00:03]} (69. Rd7 $142 Re8 70. Kh6) 69... Re8 $1 $18 {[%emt 0:00:47]} 70. Rc1 {[%emt 0:00:10]} Ra8 {[%emt 0:00:39]} 71. Rg1 {[%emt 0:00:28]} Kf8 {[%emt 0:00:52]} 72. Rxg6 {[%emt 0:00:14]} Bxg6 {[%emt 0:00:37]} 73. Kxg6 {[%emt 0:00:06]} Ra4 {[%emt 0:00:28]} 74. f5 {[%emt 0:00:08]} (74. Kxh5 Rxf4 75. Kg6 Rf2 $11) 74... Rf4 {[%emt 0:01:05]} 75. Bg5 {[%emt 0:00:27]} (75. Kxh5 Rxf5+ 76. Kg6 Rf1 $11) 75... Re4 {[%emt 0:01:04]} 76. e6 {[%emt 0:00:05]} (76. Kxh5 Rxe5 77. Kg6 Rc5 $11) 76... Re5 {[%emt 0:00:55]} 77. e7+ {[%emt 0:00:29]} (77. Kxh5 Rxf5 78. Kg6 Re5 $16) 77... Ke8 {[%emt 0:01:07]} 78. f6 $1 {[%emt 0:00:11]} ({Stronger than} 78. Kxh5 Rxf5 79. Kg6 Rd5 $11) 78... Re6 {[%emt 0:00:18]} 79. Kg7 {[%emt 0:00:06]} 1-0

[Event "15th Chennai GM Open 2025"]
[Site "Chennai"]
[Date "2025.01.03"]
[Round "2.13"]
[White "Shahil Dey"]
[Black "Advaitt Srikant Koduri"]
[Result "1-0"]
[ECO "A07"]
[WhiteElo "2374"]
[BlackElo "2105"]
[Annotator "TA"]
[PlyCount "137"]
[EventDate "2025.01.02"]
[EventType "swiss"]
[EventCountry "IND"]
[SourceTitle "playchess.com"]
[Source "ChessBase"]
[SourceQuality "1"]
[TimeControl "5400+30"]

{[%evp 22,137,-33,-28,0,-14,-4,-23,-25,-43,16,34,117,123,108,70,210,199,193,166,172,166,151,160,165,160,145,159,174,119,181,189,250,265,262,255,250,216,202,215,203,218,219,212,215,214,237,233,229,237,267,256,239,171,169,169,231,198,219,206,453,453,453,453,453,445,438,345,460,453,445,438,438,438,431,56,62,0,431,424,308,304,431,431,409,396,351,351,577,577,591,584,560,531,577,548,577,557,463,69,69,69,1420,1377,1579,1579,1579,1579,1554,1547,1174,1017,966,959,911,871,749,652]} 1. Nf3 {[%emt 0:07:07]} d5 {[%emt 0:00:59]} 2. g3 {[%emt 0:00:03]} Nf6 {[%emt 0:00:47]} 3. Bg2 {[%emt 0:00:04]} c6 {[%emt 0:00:51]} 4. O-O {[%emt 0:00:06]} Bf5 {[%emt 0:02:02]} 5. Nh4 {[%emt 0:00:04]} Bg6 {[%emt 0:03:19]} 6. f4 {[%emt 0:02:18]} e6 {[%emt 0:06:10]} 7. d3 {[%emt 0:01:28]} Be7 {[%emt 0:12:02]} 8. Qe1 {[%emt 0:00:24]} Qb6+ {[%emt 0:11:05]} 9. e3 {[%emt 0:02:48]} Nbd7 {[%emt 0:05:45]} 10. Kh1 {[%emt 0:01:05]} Ng4 {[%emt 0:05:46]} 11. h3 {[%emt 0:17:36]} Bxh4 {[%emt 0:09:24]} 12. hxg4 {[%emt 0:08:27]} Bf6 {[%emt 0:00:21]} 13. Nd2 {[%emt 0:00:25]} h6 {[%emt 0:10:02]} 14. a4 {[%emt 0:02:30]} Qc5 {[%emt 0:02:20]} 15. e4 {[%emt 0:05:51]} Qxc2 {[%emt 0:10:41]} (15... dxe4 $1 $15 16. Nxe4 Bxe4 17. dxe4 Qxc2) 16. f5 $11 {[%emt 0:02:48]} O-O-O {[%emt 0:02:28]} (16... Bxb2 $2 17. Bxb2 Qxb2 18. fxg6 $18) (16... Nc5 $14 17. exd5 Nxd3) 17. fxg6 $16 {[%emt 0:00:59]} fxg6 {[%emt 0:02:22]} 18. Ra3 {[%emt 0:01:22]} h5 {[%emt 0:03:06]} ({Better is} 18... g5 $1 $14) 19. g5 $1 $18 {[%emt 0:00:44]} Bxg5 {[%emt 0:03:46]} 20. Nf3 {[%emt 0:02:58]} Bxc1 {[%emt 0:05:22]} 21. Qxc1 {[%emt 0:00:04]} Qxc1 {[%emt 0:00:17]} 22. Rxc1 {[%emt 0:00:04]} dxe4 {[%emt 0:00:10]} 23. dxe4 {[%emt 0:00:16]} Nf6 {[%emt 0:00:13]} 24. Ne5 {[%emt 0:00:11]} Rd2 {[%emt 0:01:26] [#]} 25. b4 {[%emt 0:02:33]} (25. Nc4 $1 $18 {[%cal Rc4d2]} Rd7 26. e5) 25... Ng4 {[%emt 0:00:52]} (25... Rhd8 $16) 26. Nc4 $18 {[%emt 0:01:56]} Re2 {[%emt 0:01:16]} (26... Rd4 27. Kg1 Kb8) 27. Bf3 $18 {[%emt 0:01:23]} Rf2 {[%emt 0:00:26]} 28. Kg1 {[%emt 0:00:06]} Rf8 {[%emt 0:00:09]} 29. Ne5 {[%emt 0:04:43]} Rb2 {[%emt 0:00:29]} 30. Bxg4 {[%emt 0:00:32]} hxg4 {[%emt 0:00:06]} 31. b5 {[%emt 0:00:07]} (31. Nxg6 Rff2 $11) 31... Rff2 {[%emt 0:01:00]} 32. Nxg4 {[%emt 0:01:01]} Rfc2 {[%emt 0:00:10]} 33. Rxc2 {[%emt 0:01:43]} Rxc2 {[%emt 0:00:04]} 34. bxc6 {[%emt 0:00:11]} bxc6 {[%emt 0:00:44]} 35. Ne3 {[%emt 0:02:04]} Rd2 {[%emt 0:00:26]} 36. Rc3 {[%emt 0:00:07]} Kc7 {[%emt 0:00:36]} 37. Nc4 {[%emt 0:01:37]} Rd4 {[%emt 0:00:29]} 38. Na5 {[%emt 0:03:52]} Rxa4 {[%emt 0:00:55]} (38... Rxe4 $142 39. Nxc6 (39. Rxc6+ Kd7 $18) 39... Rxa4) 39. Rxc6+ $18 {[%emt 0:00:46]} Kd7 {[%emt 0:00:07]} 40. Ra6 {[%emt 0:00:09]} Rxe4 $2 {[%emt 0:01:21]} (40... Kc7 41. e5 (41. Rxa7+ Kb6 $18) 41... Ra1+ 42. Kg2 g5) 41. Rxa7+ $18 {[%emt 0:00:02]} Kd6 {[%emt 0:00:11]} 42. Rxg7 {[%emt 0:00:10]} Rg4 {[%emt 0:00:20]} 43. Kf2 {[%emt 0:00:06]} Ke5 {[%emt 0:00:12]} 44. Rf7 {[%emt 0:01:06]} Ra4 {[%emt 0:00:57]} 45. Nc6+ {[%emt 0:00:13]} Kd6 {[%emt 0:00:08]} 46. Ne7 {[%emt 0:00:23]} g5 {[%emt 0:00:12]} 47. Ng6 {[%emt 0:00:28]} Kd5 {[%emt 0:00:40]} 48. Re7 $2 {[%emt 0:02:58]} ({White should try} 48. Kg2 $18) 48... Ke4 $1 $14 {[%emt 0:01:08]} 49. Rf7 {[%emt 0:01:21]} (49. g4 $14 Ra2+ 50. Ke1) 49... Ra2+ $2 {[%emt 0:00:09][%mdl 8192]} (49... Kd5 $1 $11 50. Kg2 e5) 50. Kg1 $18 {[%emt 0:00:02]} e5 {[%emt 0:01:00]} 51. Rf2 {[%emt 0:03:37]} Ra6 {[%emt 0:00:29]} (51... Ra7 {was worth a try.} 52. Kg2 Kd4) 52. Ne7 $18 {[%emt 0:00:19]} Kd3 {[%emt 0:00:31]} 53. Rf3+ {[%emt 0:00:39]} Ke4 {[%emt 0:00:37]} 54. Rf1 {[%emt 0:01:01]} Kd3 $2 {[%emt 0:00:30]} (54... Ra2 55. Rf2 Ra7) 55. Re1 $18 {[%emt 0:00:55]} e4 {[%emt 0:00:23]} 56. Nf5 {[%emt 0:00:06]} Re6 {[%emt 0:00:37]} 57. Re3+ {[%emt 0:00:16]} Kd2 {[%emt 0:00:23]} 58. Kf2 {[%emt 0:00:10]} g4 {[%emt 0:00:18]} 59. Re2+ {[%emt 0:02:08]} Kd3 {[%emt 0:00:05]} 60. Ke1 $2 {[%emt 0:01:09]} ({White has to play} 60. Ne3 $18) 60... e3 $14 {[%emt 0:00:46]} 61. Ra2 {[%emt 0:00:26]} Ke4 $2 {[%emt 0:00:55][%mdl 8192] [#]} (61... Rf6 $14) 62. Nh4 $1 $18 {[%emt 0:00:05]} Rb6 {[%emt 0:00:33]} 63. Ke2 {[%emt 0:00:04]} Rb4 {[%emt 0:00:29]} 64. Ng2 {[%emt 0:00:05]} Kf5 {[%emt 0:00:31]} 65. Nxe3+ {[%emt 0:00:05]} Kg5 {[%emt 0:00:05]} 66. Ra5+ {[%emt 0:00:08]} Kg6 {[%emt 0:00:04]} 67. Rc5 {[%emt 0:00:06]} Rb2+ {[%emt 0:00:13]} 68. Rc2 {[%emt 0:00:03]} Rb4 {[%emt 0:00:04]} 69. Rc4 {[%emt 0:00:03]} 1-0

[Event "15th Chennai GM Open 2025"]
[Site "Chennai"]
[Date "2025.01.03"]
[Round "2.14"]
[White "Sneha Halder"]
[Black "Venkatesh, M.R."]
[Result "0-1"]
[ECO "A10"]
[WhiteElo "2105"]
[BlackElo "2362"]
[Annotator "TA"]
[PlyCount "74"]
[EventDate "2025.01.02"]
[EventType "swiss"]
[EventCountry "IND"]
[SourceTitle "playchess.com"]
[Source "ChessBase"]
[SourceQuality "1"]
[TimeControl "5400+30"]

{[%evp 9,73,7,3,7,3,0,0,0,0,0,9,8,22,12,43,16,20,-14,-4,-22,-4,-14,-21,-51,-20,-45,-29,-32,-23,-70,-53,-59,-66,-52,-54,-49,-69,-65,-50,-68,-50,-69,-57,-52,-54,-129,-114,-101,0,0,0,0,0,-161,-25,-513,-315,-1126,-1058,-852,-730,-1072,-414,-29978,-29976,-29999]} 1. c4 {[%emt 0:00:39]} g6 {[%emt 0:05:08]} 2. Nc3 {[%emt 0:00:44]} Bg7 {[%emt 0:00:06]} 3. e4 {[%emt 0:00:35]} e5 {[%emt 0:02:54]} 4. d3 {[%emt 0:00:11]} d6 {[%emt 0:00:10]} 5. g3 {[%emt 0:00:06]} h5 {[%emt 0:07:15]} 6. h4 {[%emt 0:01:17]} Nc6 {[%emt 0:00:56]} 7. Nge2 {[%emt 0:01:06]} Bg4 {[%emt 0:00:44]} 8. Bg2 {[%emt 0:01:15]} Nd4 {[%emt 0:07:16]} 9. Qa4+ {[%emt 0:04:35]} c6 {[%emt 0:07:39]} (9... Bd7 $5 10. Qd1 $8 Bg4 $11) 10. Nxd4 {[%emt 0:01:32]} exd4 {[%emt 0:00:27]} 11. Ne2 {[%emt 0:00:12]} Ne7 {[%emt 0:00:16][%cal Bg8e7,Be7c6,Bc6e5][%mdl 32]} 12. f3 {[%emt 0:03:35]} Bd7 {[%emt 0:03:41]} 13. Qb4 {[%emt 0:08:36]} Qb8 {[%emt 0:17:07]} 14. Bf4 {[%emt 0:01:07]} c5 {[%emt 0:00:13]} 15. Qd2 {[%emt 0:00:36]} Nc6 {[%emt 0:00:32]} 16. a3 {[%emt 0:04:56]} a5 {[%emt 0:00:22]} 17. a4 {[%emt 0:00:58]} Qc7 {[%emt 0:00:25]} 18. b3 {[%emt 0:04:03]} Ne5 {[%emt 0:07:21]} 19. O-O {[%emt 0:11:47]} (19. Qc2 $11) 19... O-O-O {[%emt 0:01:01] Black is more active.} 20. Bg5 {[%emt 0:14:11][%cal Oe2f4]} Rdg8 {[%emt 0:20:18]} 21. Nf4 {[%emt 0:08:07] Threatens to win with Nd5.} f6 $1 {[%emt 0:00:06]} 22. Nd5 {[%emt 0:01:53][%csl LRc7,LRf6]} Qd8 {[%emt 0:00:05]} 23. Bf4 {[%emt 0:00:08]} Be6 {[%emt 0:00:25][%cal Og6g5]} 24. Bxe5 {[%emt 0:20:07]} dxe5 {[%emt 0:02:04]} 25. f4 {[%emt 0:03:52]} Bh6 {[%emt 0:00:52]} 26. Qf2 {[%emt 0:00:33]} Rf8 {[%emt 0:04:03]} 27. Kh2 {[%emt 0:03:32]} (27. Qe2 $15) 27... g5 $17 {[%emt 0:08:21]} 28. Bh3 {[%emt 0:03:01] [#]} Bxh3 {[%emt 0:02:11]} (28... g4 $1 $17 {[%cal Rg4h3]} 29. Bg2 Bxd5 30. exd5 exf4 31. gxf4 f5) 29. Kxh3 $11 {[%emt 0:00:01]} exf4 {[%emt 0:00:38]} 30. gxf4 {[%emt 0:00:34]} gxf4 {[%emt 0:00:05] And now ...Rhg8 would win.} 31. Qf3 $2 {[%emt 0:01:29]} (31. Rg1 $11 {and White is okay.}) 31... f5 {[%emt 0:01:28]} (31... Kb8 $19 32. Rg1 Rfg8 33. Nxf4 Qd7+ 34. Kh2 Qc7) 32. e5 $2 {[%emt 0:00:20][%mdl 8192]} (32. exf5 $1 $11 Kb8 (32... Rxf5 33. Qe4 $11) 33. f6) 32... Rhg8 {[%emt 0:00:11]} 33. Nxf4 $2 {[%emt 0:00:45]} (33. e6 Rg3+ 34. Qxg3 fxg3 35. e7) 33... Rg4 $19 {[%emt 0:01:12][%csl Gg4][%cal Rd8h4]} 34. Ng2 {[%emt 0:00:10]} f4 {[%emt 0:00:26] ( -> ...Qd7)} 35. Qd5 {[%emt 0:00:29]} Rfg8 {[%emt 0:01:21]} (35... Qe7 $142 {( -> ...Rfg8)} 36. e6 Rd8 37. Qxh5 Rg3+ 38. Kh2 Qxe6) 36. Qe6+ {[%emt 0:00:54]} (36. Qxd8+ $19 Kxd8 37. Ne1) 36... Kb8 {[%emt 0:00:08]} 37. Nxf4 {[%emt 0:00:33]} Qxh4# {[%emt 0:00:07]} 0-1